Cogmind - Beta 15 @@@ ROGUE MODE // 2025.09.17 @ 23:11:50 Player: c4-BRK Result: Destroyed by as-51433 with Assembled Rifle Performance ------------- Evolutions (1) 500 Regions Visited (4) 800 Robots Destroyed (22) 110 Value Destroyed (492) 492 Prototype IDs (1) 20 Alien Tech Used (0) 0 Bonus (278) 278 TOTAL SCORE: 2200 Bonus ------- Follower Combat Kills 301 Friendly Fire -23 Cogmind --------- Core Integrity 0/400 Matter 280/300 Energy 99/100 System Corruption 0% Temperature Cool (0) Movement Core (200) Ox3 Location -9/Mines Parts ------- > --- POWER (1) -------- (None) > --- PROPULSION (2) --- Wheel > --- UTILITY (3) ------ Medium Storage Unit > --- WEAPON (3) ------- (None) > --- INVENTORY (10) --- Light Ion Engine High-capacity Storage Unit Experimental Sensor Array Signal Generator Peak State ------------ > --- POWER ------------ Light Angular Momentum Engine > --- PROPULSION ------- Wheel > --- UTILITY ---------- Improved Heat Sink Medium Storage Unit > --- WEAPON ----------- Improved Medium Laser Beamcaster Assault Rifle > --- INVENTORY -------- Light Ion Engine Light Nuclear Core Carbon-fiber Leg Wheel High-capacity Storage Unit Mining Laser Signal Generator [Rating: 20] Favorites ----------- Power Light Ion Engine Engine Light Ion Engine Power Core Light Nuclear Core Propulsion Wheel Leg Carbon-fiber Leg Wheel Wheel Utility Medium Storage Unit Device Sensor Array Storage Medium Storage Unit Weapon Assault Rifle Energy Gun EM Pulse Gun Ballistic Gun Assault Rifle Launcher Grenade Launcher Special Weapon Mining Laser Build | -11 -10 -10 -9 -9 ------- Run | Yrd Mat Min Mat Min Slots Evolved 2 | . . . 2 . Power . | . . . . . Propulsion . | . . . . . Utility 1 | . . . 1 . Weapon 1 | . . . 1 . Parts Attached 21 | 6 2 . 7 6 Power 4 | 1 . . 1 2 Engine 3 | 1 . . 1 1 Core 1 | . . . . 1 Reactor . | . . . . . Propulsion 6 | 2 . . 1 3 Treads . | . . . . . Leg 1 | . . . . 1 Wheel 5 | 2 . . 1 2 Hover . | . . . . . Flight . | . . . . . Utility 4 | 1 2 . 1 . Device 2 | . 1 . 1 . Storage 2 | 1 1 . . . Processor . | . . . . . Hackware . | . . . . . Protection . | . . . . . Artifact . | . . . . . Weapon 7 | 2 . . 4 1 Energy Gun 3 | 1 . . 2 . Energy Cannon . | . . . . . Ballistic Gun 1 | 1 . . . . Ballistic Cannon . | . . . . . Launcher 2 | . . . 1 1 Special Weapon 1 | . . . 1 . Impact Weapon . | . . . . . Slashing Weapon . | . . . . . Piercing Weapon . | . . . . . Special Melee Weapon . | . . . . . Unidentified Prototypes 1 | . . . 1 . Parts Lost 17 | . . . 5 12 Power 3 | . . . 1 2 Propulsion 5 | . . . 1 4 Utility 2 | . . . 1 1 Weapon 7 | . . . 2 5 Highest Loss Streak 5 | . . . 2 5 To Critical Strikes . | . . . . . Average Backups 3 | 1 . 2 4 4 Power . | . . . 1 1 Propulsion . | . . . 1 1 Utility . | . . . 1 1 Weapon 1 | . . 2 1 . Tool/Special . | . . . . . Unused Backups 3 | . . . . 3 Power 1 | . . . . 1 Propulsion . | . . . . . Utility 2 | . . . . 2 Weapon . | . . . . . Tool/Special . | . . . . . Average Slot Usage (%) 80 | . 90 100 77 43 Engine 10 | . 14 14 10 2 Wheel 21 | . 28 28 20 9 Device 10 | . 5 14 6 7 Storage 12 | . 14 14 11 11 Energy Gun 10 | . 14 14 11 2 Ballistic Gun 10 | . 14 14 11 . Launcher 2 | . . . 7 4 Peak Build Rating 20 | 6 7 7 20 20 Average Rating 7 | 2 6 7 9 8 On Entrance 8 | . 6 7 7 20 Naked Turns . | . . . . . Heaviest Build 30 | 12 18 18 30 30 Greatest Support 26 | 20 20 20 26 15 Greatest Overweight (x) 5 | . . . 2 5 Average Overweight (x) . | . . . . . Largest Inventory Capacity 10 | 8 10 10 10 10 Average Capacity 9 | 6 9 10 10 10 Most Carried 9 | 5 2 5 9 7 Average Carried 3 | 1 . 2 5 5 Final Capacity 10 | 8 10 10 10 10 Final Carried 7 | . 2 5 7 4 Class Distribution -------------------- 83% | Mutant 8% | Skirmisher 7% | Gunner Dominant Class ---------------- Mutant | -10/Materials Mutant | -10/Mines Skirmisher | -9/Materials Mutant | -9/Mines Resources | -11 -10 -10 -9 -9 ----------- Run | Yrd Mat Min Mat Min Matter Collected 589 | 209 . 80 167 133 Remotely . | . . . . . Salvage Created 618 | . . 120 308 190 Parts 40 | . . 6 20 14 Haulers Intercepted . | . . . . . Recyclers Shooed . | . . . . . Parts Field Recycled . | . . . . . Retrieved Matter . | . . . . . Parts Self-Destructed . | . . . . . Prevented . | . . . . . Kills | -11 -10 -10 -9 -9 ------- Run | Yrd Mat Min Mat Min Combat Hostiles Destroyed 17 | . . . 9 8 Guns 11 | . . . 9 2 AOE 6 | . . . . 6 Classes Destroyed 9 | . . 2 5 2 Worker 1 | . . . . 1 Builder 1 | . . . . 1 Tunneler 1 | . . 1 . . Recycler 1 | . . 1 . . Watcher 1 | . . . 1 . Swarmer 7 | . . . 4 3 Grunt 7 | . . . 3 4 Duelist 2 | . . . 1 1 Sentry 1 | . . . 1 . Best Kill Streak 4 | . . 2 4 4 Combat Bots Only 3 | . . . 3 3 Max Kills in Single Turn 2 | . . 1 1 2 Gunslinging . | . . . . . Exploded 2 | . . . . 2 Melee . | . . . . . Uniques/NPCs Destroyed . | . . . . . Combat | -11 -10 -10 -9 -9 -------- Run | Yrd Mat Min Mat Min Hostile Shots Fired 116 | . . . 58 58 Missed 27 | . . . 18 9 Hits 89 | . . . 40 49 Melee 12 | . . . 2 10 Projectile 77 | . . . 38 39 Critical Strikes 5 | . . . . 5 Damage Taken 1351 | . . . 451 900 Core 403 | . . . 79 324 Absorbed by Shields . | . . . . . Core Remaining (%) 100 | 100 . 100 . . Volleys Fired 54 | . . 4 33 17 Largest 3 | . . 2 3 3 Hottest 151 | . . 60 90 151 Shots Fired 98 | . . 8 67 23 Gun 86 | . . 8 65 13 Cannon . | . . . . . Launcher 12 | . . . 2 10 Special . | . . . . . Kinetic 39 | . . 4 33 2 Thermal 31 | . . . 20 11 Explosive 12 | . . . 2 10 Electromagnetic 16 | . . 4 12 . Robot Hit Streak 5 | . . 5 3 3 Robot Miss Streak 6 | . . 2 6 2 Penetration Max . | . . . . . Secondary Targets 2 | . . . 1 1 Max Gunslinging Chain 1 | . . . 1 1 Shots Hit Robots 54 | . . 5 34 15 Core Hits 35 | . . 3 17 15 Critical Kills . | . . . . . Critical Parts Destroyed . | . . . . . Critical Strikes 1 | . . . . 1 Burn 1 | . . . . 1 Melee Attacks . | . . . . . Impact . | . . . . . Slashing . | . . . . . Piercing . | . . . . . Sneak Attacks . | . . . . . Combat Hostiles . | . . . . . Follow-up Attacks . | . . . . . Damage Inflicted 1503 | . . 62 557 884 Guns 657 | . . 62 461 134 Cannons . | . . . . . Explosions 846 | . . . 96 750 Melee . | . . . . . Ramming . | . . . . . Kinetic 250 | . . 22 228 . Thermal 270 | . . . 136 134 Explosive 846 | . . . 96 750 Electromagnetic 137 | . . 40 97 . Impact . | . . . . . Slashing . | . . . . . Piercing . | . . . . . Highest Corruption . | . . . . . Average Corruption . | . . . . . Corruption Purged . | . . . . . Corruption Blocked . | . . . . . Overload Shots . | . . . . . Overflow Damage 25 | . . . . 25 Projectiles . | . . . . . Explosions 25 | . . . . 25 Melee . | . . . . . Knockbacks . | . . . . . Impact . | . . . . . Kinetic . | . . . . . Secondary . | . . . . . Self-Inflicted Damage 129 | . . . 27 102 Shots 5 | . . . 1 4 Rammed 1 | . . . . 1 Targets Rammed 1 | . . . . 1 Kicked . | . . . . . Crushed . | . . . . . Highest Temperature 110 | . . . 42 110 Average Temperature 28 | . . . 14 79 Received Heat Transfer 210 | . . . 90 120 Siege Activations . | . . . . . Martial Activations . | . . . . . Shielding Activations . | . . . . . Robots Disrupted . | . . . . . Combat Hostiles . | . . . . . Robots Corrupted . | . . . . . Combat Hostiles . | . . . . . Parts Fried . | . . . . . Impact Corruptions . | . . . . . Robots Melted . | . . . . . Combat Hostiles . | . . . . . Parts Melted 2 | . . . 2 . Heat Transferred 629 | . . . 296 333 Parts Sabotaged . | . . . . . Parts Stolen . | . . . . . Parts Stripped . | . . . . . Power Chain Reactions . | . . . . . Alert | -11 -10 -10 -9 -9 ------- Run | Yrd Mat Min Mat Min Maximum Alert Level 1 | . . . 1 . Low Security (%) 91 | 100 100 100 55 100 Level 1 8 | . . . 44 . Level 2 . | . . . . . Level 3 . | . . . . . Level 4 . | . . . . . Level 5 . | . . . . . High Security . | . . . . . Max Security . | . . . . . Peak Influence 382 | . . 59 382 188 Initial 127 | . . . 8 127 Average 65 | . . 6 165 124 Influence Increases 999 | . . 77 641 281 Destroy 0b10 Robot/C 600 | . . 40 400 160 Destroy 0b10 Robot/NC 35 | . . 10 15 10 Destroy Leader 134 | . . 10 104 20 Allied During Kill 101 | . . 17 84 . Successful Hack 8 | . . . 8 . Disable Machine 15 | . . . 15 . Destroy Structure 91 | . . . 15 76 Lose Combat Pursuer 15 | . . . . 15 Influence Decreases 933 | . . 54 335 544 Entered New Map 217 | . . . 15 202 Time Decay 446 | . . 54 170 222 Lost Part 170 | . . . 50 120 Lost Ally 100 | . . . 100 . Squads Dispatched 5 | . 2 . 3 . Investigation 3 | . 1 . 2 . Extermination . | . . . . . Reinforcement 2 | . 1 . 1 . Assault . | . . . . . Garrison . | . . . . . Intercept . | . . . . . Searches Triggered . | . . . . . Construction Impeded . | . . . . . Haulers Reinforced . | . . . . . Active Scanning Responses . | . . . . . Cargo Convoy Interrupts . | . . . . . Stealth | -11 -10 -10 -9 -9 --------- Run | Yrd Mat Min Mat Min Distress Signals 2 | . . . 1 1 Communications Jammed . | . . . . . Distress Signals . | . . . . . Times Spotted 58 | . . 1 27 30 Peak Tracking Total 20 | . 1 . 8 20 Tactical Retreats 3 | . . . . 3 Traps | -11 -10 -10 -9 -9 ------- Run | Yrd Mat Min Mat Min Traps Triggered 1 | . 1 . . . Indirectly . | . . . . . Trap Hack Attempts . | . . . . . Triggered . | . . . . . Disarmed . | . . . . . Reprogrammed . | . . . . . Reused . | . . . . . Traps Extracted . | . . . . . Installed . | . . . . . Triggered . | . . . . . Machines | -11 -10 -10 -9 -9 ---------- Run | Yrd Mat Min Mat Min Machines Disabled 1 | . . . 1 . Max in Single Turn . | . . . . . Machines Repaired . | . . . . . Machines Dismantled . | . . . . . Machines Sabotaged . | . . . . . Overloaded Fab Kills . | . . . . . Hacking | -11 -10 -10 -9 -9 --------- Run | Yrd Mat Min Mat Min Machines Accessed 3 | . . . 2 1 Terminals 3 | . . . 2 1 Fabricators . | . . . . . Repair Stations . | . . . . . Recycling Units . | . . . . . Scanalyzers . | . . . . . Garrison Access . | . . . . . Total Hacks 9 | . . . 6 3 Successful 3 | . . . 2 1 Failed 6 | . . . 4 2 Catastrophic 1 | . . . . 1 Database Lockouts . | . . . . . Manual 6 | . . . 4 2 Terminals 9 | . . . 6 3 Fabricators . | . . . . . Repair Stations . | . . . . . Recycling Units . | . . . . . Scanalyzers . | . . . . . Garrison Access . | . . . . . Terminal Hacks 3 | . . . 2 1 Robot Analysis 1 | . . . 1 . Branch Access Points 1 | . . . 1 . Dispatch Records 1 | . . . . 1 Fabricator Hacks . | . . . . . Repair Station Hacks . | . . . . . Recycling Unit Hacks . | . . . . . Scanalyzer . | . . . . . Garrison Access Hacks . | . . . . . Unauthorized Hacks . | . . . . . Terminals . | . . . . . Fabricators . | . . . . . Repair Stations . | . . . . . Recycling Units . | . . . . . Scanalyzers . | . . . . . Garrison Access . | . . . . . Data Cores Recovered 1 | . . . 1 . Used . | . . . . . Hacking Detections 2 | . . . 1 1 Full Trace Events 2 | . . . 1 1 Feedback Events . | . . . . . Feedback Blocked . | . . . . . Robot Schematics Acquired . | . . . . . Robots Built . | . . . . . Authchips . | . . . . . Time . | . . . . . Total Robot Build Rating . | . . . . . Part Schematics Acquired . | . . . . . Parts Built . | . . . . . Authchips . | . . . . . Time . | . . . . . Total Part Build Rating . | . . . . . Parts Repaired . | . . . . . Time . | . . . . . Parts Recycled . | . . . . . Recycled Matter . | . . . . . Retrieved Matter . | . . . . . Retrieved Components . | . . . . . Parts Scanalyzed . | . . . . . Part Schematics Acquired . | . . . . . Parts Damaged . | . . . . . Bothacking | -11 -10 -10 -9 -9 ------------ Run | Yrd Mat Min Mat Min Used RIF Installer . | . . . . . Robots Hacked . | . . . . . Non-combat . | . . . . . Combat . | . . . . . Robot Hacks Applied . | . . . . . Relay Couplers Released . | . . . . . Fabnet Peak Effective % . | . . . . . Robots Rewired . | . . . . . Allies Hacked . | . . . . . Hacks Repelled . | . . . . . Allies | -11 -10 -10 -9 -9 -------- Run | Yrd Mat Min Mat Min Total Allies 5 | . . 5 . . Largest Group 5 | . . 5 5 . Highest-Rated Group 86 | . . 86 86 . Highest-Rated Ally 31 | . . 31 31 . Total Orders . | . . . . . Ally Attacks 74 | . . 16 58 . Total Damage 833 | . . 169 664 . Kills 15 | . . 2 13 . Allies Corrupted . | . . . . . Allies Melted . | . . . . . Intel | -11 -10 -10 -9 -9 ------- Run | Yrd Mat Min Mat Min Active Infowar (turns) 1135 | . 29 936 170 . Sensors 1135 | . 29 936 170 . Robot Analysis Total 1 | . . . 1 . Derelict Logs Recovered 3 | . . 2 . 1 Drone Launches . | . . . . . Drone Recoveries . | . . . . . Exploration | -11 -10 -10 -9 -9 ------------- Run | Yrd Mat Min Mat Min Turns Passed 1872 | 30 75 936 355 476 Spaces Moved 1113 | 30 69 400 216 398 Core 39 | 16 . . . 23 Treads . | . . . . . Legs 70 | . . . . 70 Wheels 1004 | 14 69 400 216 305 Hover . | . . . . . Flight . | . . . . . Fastest Speed 50 | 50 80 80 80 80 Average Speed 91 | 64 80 80 95 105 Slowest Speed 300 | 80 80 80 110 300 Overloaded Moves . | . . . . . Propulsion Burnouts . | . . . . . Robots Hopped . | . . . . . Potential Cave-ins . | . . . . . Cave-ins Triggered . | . . . . . Exploration Rate (%) 34 | 3 15 59 21 74 Regions Visited 4 Branch Regions 2 Pre-discovered Areas 2 | . . 2 . . Known Exits Taken 1 | . . . 1 . Unknown Exits Taken 3 | 1 1 1 . . Scrap Searched 1 | . . 1 . . Spaces Dug . | . . . . . Terrain Destroyed 122 | . . . 14 108 Melee . | . . . . . Projectile . | . . . . . AOE 122 | . . . 14 108 Terrain Rammed . | . . . . . Walls Destroyed . | . . . . . Machines Disabled . | . . . . . Actions | -11 -10 -10 -9 -9 --------- Run | Yrd Mat Min Mat Min Total 1865 | 40 89 1007 298 431 Wait 650 | . 14 601 35 . Move 1109 | 29 68 399 215 398 Hop . | . . . . . Pick Up 24 | 5 4 3 7 5 Fast Attach 1 | 1 . . . . Attach 21 | 5 2 . 5 9 Detach 1 | . . . . 1 Swap 3 | . . . 3 . Drop 1 | . 1 . . . Fire 54 | . . 4 33 17 Melee . | . . . . . Ram 1 | . . . . 1 Kick . | . . . . . Crush . | . . . . . Escape Stasis . | . . . . . Rewire . | . . . . . Trap . | . . . . . Miscellaneous . | . . . . . Route ------- -11/Scrapyard -10/Materials -10/Mines -9/Materials -9/Mines (discovered 1 exit: [*Mat]) History --------- Turn | Location | Event 2 | -11/Scrapyard | Met Revision 17 14 | -11/Scrapyard | Discovered new exit (range 15) 31 | -11/Scrapyard | Entered Materials 97 | -10/Materials | Discovered new exit (range 6) 106 | -10/Materials | Entered Mines 108 | -10/Mines | Discovered new exit (range 10) 117 | -10/Mines | Assisted by bots powering up and referring to "LRC-V3" 118 | -10/Mines | Learned location of Mines (-9) 183 | -10/Mines | Learned location of Storage (-7) 307 | -10/Mines | Build established: Mutant 673 | -10/Mines | Met a Derelict testing a Signal Generator 686 | -10/Mines | Found Signal Generator 1042 | -10/Mines | Entered Materials 1042 | -9/Materials | Accompanied by 5 allies 1042 | -9/Materials | Evolved 2 slots: Utility x1, Weapon x1 1047 | -9/Materials | Led the pair of lost Derelicts to an unsafe place 1178 | -9/Materials | Identified exit to Mines 1364 | -9/Materials | Lost 3 allies 1397 | -9/Materials | Entered Mines 1401 | -9/Mines | Learned Materials stockpile data 1463 | -9/Mines | Lost 3 parts (3w) 1488 | -9/Mines | Received a Rocket Launcher from a helpful Derelict 1488 | -9/Mines | Discovered new exit (range 3) 1691 | -9/Mines | Found a damaged Exp. Sensor Array with a note attached 1693 | -9/Mines | Found Prototype Device 1730 | -9/Mines | Core integrity fell below 50% 1753 | -9/Mines | Assembled infested the area 1758 | -9/Mines | Assisted by a Guerilla fighting off Assembled 1770 | -9/Mines | Lost 5 parts (1p2n1u1w) 1770 | -9/Mines | Core integrity fell below 20% 1873 | -9/Mines | Destroyed by as-51433 with Assembled Rifle Last Messages --------------- try to find another way!" HV Slug penetrates Wall. A derelict emerges from the shadows: "You need to get out of here! I've been tracking a group of Assembled to figure out where they're coming from, and they're closing on this area, come on!" HV Slug penetrates L-31 Rogue. L-31 Rogue destroyed. K-01 Serf collects debris. HV Slug penetrates as-34623. as-34623 suffers critical hit (Destroy). as-34623 destroyed. HV Slug penetrates as-75574. as-75574 suffers critical hit (Destroy). as-75574 destroyed. K-01 Serf destroyed. HV Slug penetrates Wall. Lgt. Ion Engine destroyed. Carbon-fiber Leg destroyed. Map ----- +----------------------------------------------------+ | | | | | | | | | | | | | | | | | | | | | | | | | ??????????????????????????????????????????????? | | ??????????????????????????????????????????????? | | ??????????????????????????????????????????????? | | ??????????????????????????###?????????????????? | | ?????????????????????????? #?????????????????? | | ?????????????????????????? #?????????????????? | | ?????????????????????????? #?????????????????? | | ????????????????????????## #?????????????????? | | ???????????????????????## ##????????????????? | | ??????????????????????## #????????????????? | | ??????????????????????# ####?????????????? | | ??????????????????????# $ ??????????????? | | ?????????????????????## #????????????????? | | ?????????????????????# @ #??? ???????????? | | ?????????????????????# #??? #??????????? | | ?????????????????????## ##??? #??????????? | | ??????????????????????## ##???# #??????????? | | ???????????????????????## ##???# #??????????? | | ????????????????????????# ##??# #??????????? | | ????????????????????????## ##?# #??????????? | | ?????????????? ?????????# #?# #??????????? | | ?????????????? ##???????# #?# #??????????? | | ?????????????? #???????## ##?# #?#####????? | | ?????????????? ????????# #?## ## #????? | | ????????????## ????????# a#?# #????? | | ???????????? ?????????# ### #????? | | ????????????# " ?????????# ## #?????? | | ???????????## ?????????# #??????? | | ???????????# ?????????# ##?????? | | ???????????# ??????????# ##????? | | ???????????# ?????###?# ### #????? | | ???????????? ?????# ##?## #????? | | ????????????# ???## ##???## #????? | | ????????????# #???# """ ####?????# #????? | | ????????????# #???# """ #????????## #????? | | ???????????# ####"# """ #????##### ##????? | | ???????????# ## ##??# ##?????? | | ???????????# ## ### ## #??????? | +----------------------------------------------------+ Best States ------------- Heat Dissipation 42 Energy Generation 18 Energy Capacity 160 Matter Stores 300 Matter Capacity 300 Sight Range 16 Robot Scan Range 14 Terrain Scan Density 10 Evasion (%) 55 Item Schematics ----------------- None Robot Schematics ------------------ None Fabricated ------------ Nothing Repaired ---------- Nothing Alien Tech Used ----------------- None Achievements -------------- None Challenges ------------ None Game ------ Seed ProjectileVariableBarrier Manual? 0 Play Time 00:14:52 Cumulative 24.0 hours Start 2025.09.17 @ 22:57:55 End 2025.09.17 @ 23:11:50 Sessions 1 Manual Loads 0 Difficulty Rogue Special Mode None Game No. 35 Rogue 14 Adventurer 21 Explorer 0 Win Type - Total 1 Types 0/0/0/0/0/0/0/1/0/0 Lore% 47 Gallery% 32 Achievement% 37 Wizard Run 0 Options --------- Layout 1 ASCII 0 Keyboard 0 Movement Mouse Keybinds 0 Fullscreen 2 Font 24/Smallcaps Map View 50x35 Zoom Use 0% Tactical HUD 0 Map Filters NONE Filters NONE Steam 1 RUN: b05cdc2d-d8db-4631-92a0-18b3679b73a7